Cogmind - Beta 17 @@@ ROGUE MODE // 2026.07.25 @ 20:17:03 Player: Afro Result: Destroyed by 7S-9CR(R) with Subdweller Beam Cannon Performance ------------- Evolutions (0) 0 Regions Visited (2) 400 Robots Destroyed (10) 50 Value Destroyed (73) 73 Prototype IDs (0) 0 Alien Tech Used (0) 0 Bonus (0) 0 TOTAL SCORE: 523 Bonus ------- None Cogmind --------- Core Integrity 0/250 Matter 280/300 Energy 124/125 System Corruption 0% Temperature Cool (9) Movement Core (150) Ox2 Location -10/Subcaves Parts ------- > --- POWER (1) -------- Light Ion Engine > --- PROPULSION (2) --- (None) > --- UTILITY (2) ------ Small Storage Unit Machine Analyzer > --- WEAPON (2) ------- (None) > --- INVENTORY (8) ---- Light Ion Engine Light Ion Engine Improved Terrain Scanner Makeshift Hacking Suite Tractor Beam Peak State ------------ > --- POWER ------------ Ion Engine > --- PROPULSION ------- Light Treads Light Treads > --- UTILITY ---------- Small Storage Unit Seismic Detector > --- WEAPON ----------- Medium Laser Makeshift Laser > --- INVENTORY -------- Light Ion Engine Light Ion Engine Light Ion Engine Improved Terrain Scanner Makeshift Hacking Suite Tractor Beam EM Pulse Gun [Rating: 11] Favorites ----------- Power Ion Engine Engine Ion Engine Propulsion Light Treads Treads Light Treads Utility Small Storage Unit Device Seismic Detector Storage Small Storage Unit Processor Machine Analyzer Weapon Medium Laser Energy Gun Medium Laser Build | -11 -10 -10 ------- Run | Yrd Mat Sub Slots Evolved . | . . . Power . | . . . Propulsion . | . . . Utility . | . . . Weapon . | . . . Parts Attached 10 | 7 . 3 Power 2 | 1 . 1 Engine 2 | 1 . 1 Core . | . . . Reactor . | . . . Propulsion 2 | 2 . . Treads 2 | 2 . . Leg . | . . . Wheel . | . . . Hover . | . . . Flight . | . . . Utility 3 | 2 . 1 Device 1 | 1 . . Storage 1 | 1 . . Processor 1 | . . 1 Hackware . | . . . Protection . | . . . Artifact . | . . . Weapon 3 | 2 . 1 Energy Gun 3 | 2 . 1 Energy Cannon . | . . . Ballistic Gun . | . . . Ballistic Cannon . | . . . Launcher . | . . . Special Weapon . | . . . Impact Weapon . | . . . Slashing Weapon . | . . . Piercing Weapon . | . . . Special Melee Weapon . | . . . Unidentified Prototypes . | . . . Parts Lost 7 | . . 7 Power 1 | . . 1 Propulsion 2 | . . 2 Utility 1 | . . 1 Weapon 3 | . . 3 Highest Loss Streak 7 | . . 7 To Critical Strikes . | . . . Average Backups 5 | 2 4 6 Power 2 | 1 2 2 Propulsion . | . . . Utility 2 | 1 2 2 Weapon . | . . . Tool/Special . | . . . Unused Backups 5 | . . 5 Power 2 | . . 2 Propulsion . | . . . Utility 3 | . . 3 Weapon . | . . . Tool/Special . | . . . Average Slot Usage (%) 96 | . 100 93 Engine 14 | . 14 14 Treads 26 | . 28 25 Device 13 | . 14 12 Storage 14 | . 14 14 Energy Gun 26 | . 28 24 Peak Build Rating 11 | 7 7 11 Average Rating 7 | 5 7 10 On Entrance 4 | . 7 7 Avg Prop Armor Cover (%) . | . . . Naked Turns . | . . . Heaviest Build 15 | 15 15 15 Greatest Support 40 | 40 40 40 Greatest Overweight (x) 2 | . . 2 Average Overweight (x) . | . . . Largest Inventory Capacity 8 | 8 8 8 Average Capacity 7 | 7 8 8 Most Carried 7 | 5 5 7 Average Carried 5 | 2 4 6 Final Capacity 8 | 8 8 8 Final Carried 5 | 4 5 5 Class Distribution -------------------- 100% | Mutant Dominant Class ---------------- Mutant | -10/Materials Mutant | -10/Subcaves Resources | -11 -10 -10 ----------- Run | Yrd Mat Sub Matter Collected 280 | 270 . 10 Remotely . | . . . Salvage Created 251 | 222 . 29 Parts 23 | 17 . 6 Haulers Intercepted . | . . . Recyclers Shooed . | . . . Parts Field Recycled . | . . . Retrieved Matter . | . . . Parts Self-Destructed 13 | . . 13 Prevented . | . . . Parts Restored . | . . . Kills | -11 -10 -10 ------- Run | Yrd Mat Sub Combat Hostiles Destroyed 2 | . . 2 Guns 2 | . . 2 Classes Destroyed 4 | 3 . 1 Worker 2 | 2 . . Tunneler 5 | 5 . . Recycler 1 | 1 . . Swarmer 2 | . . 2 Best Kill Streak 8 | 8 . 2 Combat Bots Only 2 | . . 2 Max Kills in Single Turn 1 | 1 . 1 Gunslinging . | . . . Exploded . | . . . Melee . | . . . Uniques/NPCs Destroyed . | . . . Combat | -11 -10 -10 -------- Run | Yrd Mat Sub Hostile Shots Fired 63 | . . 63 Missed 20 | . . 20 Hits 43 | . . 43 Projectile 43 | . . 43 Critical Strikes 4 | . . 4 Damage Taken 927 | . . 927 Core 268 | . . 268 Absorbed by Shields . | . . . Core Remaining (%) 100 | 100 . . Volleys Fired 22 | 15 1 6 Largest 2 | 2 2 2 Hottest 100 | 90 90 100 Shots Fired 44 | 30 2 12 Gun 44 | 30 2 12 Cannon . | . . . Launcher . | . . . Special . | . . . Kinetic . | . . . Thermal 28 | 15 1 12 Explosive . | . . . Electromagnetic 16 | 15 1 . Robot Hit Streak 8 | 8 . 4 Robot Miss Streak 4 | 2 . 4 Penetration Max . | . . . Secondary Targets . | . . . Shots Hit Robots 22 | 18 . 4 Core Hits 11 | 9 . 2 Critical Kills . | . . . Critical Parts Destroyed . | . . . Critical Strikes 2 | 2 . . Burn 2 | 2 . . Melee Attacks . | . . . Impact . | . . . Slashing . | . . . Piercing . | . . . Sneak Attacks . | . . . Combat Hostiles . | . . . Follow-up Attacks . | . . . Damage Inflicted 314 | 262 . 52 Guns 272 | 220 . 52 Cannons . | . . . Explosions 42 | 42 . . Melee . | . . . Ramming . | . . . Kinetic . | . . . Thermal 182 | 130 . 52 Explosive . | . . . Electromagnetic 132 | 132 . . Impact . | . . . Slashing . | . . . Piercing . | . . . Highest Corruption . | . . . Average Corruption . | . . . Corruption Purged . | . . . Corruption Blocked . | . . . Overload Shots . | . . . Overflow Damage . | . . . Projectiles . | . . . Explosions . | . . . Melee . | . . . Knockbacks . | . . . Impact . | . . . Kinetic . | . . . Secondary . | . . . Self-Inflicted Damage . | . . . Shots . | . . . Rammed . | . . . Targets Rammed . | . . . Kicked . | . . . Crushed . | . . . Highest Temperature 90 | 90 30 7 Average Temperature 36 | 38 18 6 Received Heat Transfer 300 | . . 300 Siege Activations . | . . . Martial Activations . | . . . Shielding Activations . | . . . Robots Disrupted . | . . . Combat Hostiles . | . . . Robots Corrupted . | . . . Combat Hostiles . | . . . Parts Fried 1 | 1 . . Impact Corruptions . | . . . Robots Melted . | . . . Combat Hostiles . | . . . Parts Melted 1 | 1 . . Heat Transferred 605 | 457 . 148 Parts Sabotaged . | . . . Parts Stolen . | . . . Parts Stripped . | . . . Power Chain Reactions 2 | 2 . . Alert | -11 -10 -10 ------- Run | Yrd Mat Sub Maximum Alert Level . | . . . Low Security (%) 100 | 100 100 . Level 1 . | . . . Level 2 . | . . . Level 3 . | . . . Level 4 . | . . . Level 5 . | . . . High Security . | . . . Max Security . | . . . Peak Influence 15 | 15 15 . Initial 3 | . 3 . Average 2 | 4 . . Influence Increases 95 | 40 15 40 Destroy 0b10 Robot/C 40 | . . 40 Destroy 0b10 Robot/NC 40 | 40 . . Disable Machine 15 | . 15 . Influence Decreases 95 | 35 20 40 Entered New Map 2 | . 2 . Time Decay 93 | 35 18 40 Squads Dispatched 3 | . 3 . Investigation . | . . . Extermination . | . . . Reinforcement 3 | . 3 . Assault . | . . . Garrison . | . . . Intercept . | . . . Searches Triggered . | . . . Construction Impeded . | . . . Haulers Reinforced . | . . . Active Scanning Responses . | . . . Cargo Convoy Interrupts . | . . . Stealth | -11 -10 -10 --------- Run | Yrd Mat Sub Distress Signals . | . . . Communications Jammed . | . . . Distress Signals . | . . . Times Spotted 11 | . 1 10 Peak Tracking Total 5 | . 1 5 Tactical Retreats . | . . . Traps | -11 -10 -10 ------- Run | Yrd Mat Sub Traps Triggered . | . . . Indirectly . | . . . Trap Hack Attempts . | . . . Triggered . | . . . Disarmed . | . . . Reprogrammed . | . . . Reused . | . . . Traps Extracted . | . . . Installed . | . . . Triggered . | . . . Machines | -11 -10 -10 ---------- Run | Yrd Mat Sub Machines Disabled 1 | . 1 . Max in Single Turn 1 | . 1 . Machines Repaired . | . . . Machines Dismantled . | . . . Machines Sabotaged . | . . . Overloaded Fab Kills . | . . . Hacking | -11 -10 -10 --------- Run | Yrd Mat Sub Machines Accessed . | . . . Terminals . | . . . Fabricators . | . . . Repair Stations . | . . . Recycling Units . | . . . Scanalyzers . | . . . Garrison Access . | . . . Total Hacks . | . . . Successful . | . . . Failed . | . . . Catastrophic . | . . . Database Lockouts . | . . . Manual . | . . . Terminals . | . . . Fabricators . | . . . Repair Stations . | . . . Recycling Units . | . . . Scanalyzers . | . . . Garrison Access . | . . . Terminal Hacks . | . . . Fabricator Hacks . | . . . Repair Station Hacks . | . . . Recycling Unit Hacks . | . . . Scanalyzer . | . . . Garrison Access Hacks . | . . . Unauthorized Hacks . | . . . Terminals . | . . . Fabricators . | . . . Repair Stations . | . . . Recycling Units . | . . . Scanalyzers . | . . . Garrison Access . | . . . Data Cores Recovered . | . . . Used . | . . . Hacking Detections . | . . . Full Trace Events . | . . . Feedback Events . | . . . Feedback Blocked . | . . . Robot Schematics Acquired . | . . . Robots Built . | . . . Authchips . | . . . Time . | . . . Total Robot Build Rating . | . . . Part Schematics Acquired . | . . . Parts Built . | . . . Authchips . | . . . Time . | . . . Total Part Build Rating . | . . . Part Studies Acquired . | . . . Parts Repaired . | . . . Time . | . . . Parts Recycled . | . . . Recycled Matter . | . . . Retrieved Matter . | . . . Retrieved Components . | . . . Parts Scanalyzed . | . . . Part Schematics Acquired . | . . . Parts Damaged . | . . . Bothacking | -11 -10 -10 ------------ Run | Yrd Mat Sub Used RIF Installer . | . . . Robots Hacked . | . . . Non-combat . | . . . Combat . | . . . Robot Hacks Applied . | . . . Relay Couplers Released . | . . . Fabnet Peak Effective % . | . . . Robots Rewired . | . . . Allies Hacked . | . . . Hacks Repelled . | . . . Allies | -11 -10 -10 -------- Run | Yrd Mat Sub Total Allies . | . . . Largest Group . | . . . Highest-Rated Group . | . . . Highest-Rated Ally . | . . . Total Orders . | . . . Ally Attacks . | . . . Total Damage . | . . . Kills . | . . . Allies Corrupted . | . . . Allies Melted . | . . . Intel | -11 -10 -10 ------- Run | Yrd Mat Sub Active Infowar (turns) 549 | 27 267 255 Seismic 530 | 27 267 236 Machine Analysis 19 | . . 19 Robot Analysis Total . | . . . Derelict Logs Recovered . | . . . Drone Launches . | . . . Drone Recoveries . | . . . Exploration | -11 -10 -10 ------------- Run | Yrd Mat Sub Turns Passed 662 | 134 267 261 Spaces Moved 270 | 50 78 142 Core 21 | 7 . 14 Treads 249 | 43 78 128 Legs . | . . . Wheels . | . . . Hover . | . . . Flight . | . . . Fastest Speed 50 | 50 160 100 Average Speed 156 | 144 160 158 Slowest Speed 160 | 160 160 160 Overloaded Moves . | . . . Propulsion Burnouts . | . . . Robots Hopped . | . . . Potential Cave-ins . | . . . Cave-ins Triggered . | . . . Exploration Rate (%) 8 | 3 11 12 Regions Visited 2 Branch Regions 1 Pre-discovered Areas 1 | . . 1 Known Exits Taken . | . . . Unknown Exits Taken 2 | 1 1 . Scrap Searched . | . . . Spaces Dug . | . . . Terrain Destroyed 7 | 7 . . Melee . | . . . Projectile . | . . . AOE 7 | 7 . . Terrain Rammed . | . . . Walls Destroyed . | . . . Machines Disabled . | . . . Actions | -11 -10 -10 --------- Run | Yrd Mat Sub Total 466 | 82 218 166 Wait 148 | . 139 9 Move 268 | 49 77 142 Hop . | . . . Pick Up 15 | 11 1 3 Fast Attach . | . . . Attach 10 | 7 . 3 Detach . | . . . Swap 1 | . . 1 Drop . | . . . Fire 22 | 15 1 6 Melee . | . . . Ram . | . . . Kick . | . . . Crush . | . . . Escape Stasis . | . . . Rewire 2 | . . 2 Trap . | . . . Miscellaneous . | . . . Route ------- -11/Scrapyard -10/Materials -10/Subcaves (discovered 1 exit: [*Mat]) History --------- Turn | Location | Event 29 | -11/Scrapyard | Discovered new exit (range 15) 135 | -11/Scrapyard | Entered Materials 307 | -10/Materials | Build established: Mutant 379 | -10/Materials | Discovered new exit (range 10) 402 | -10/Materials | Entered Subcaves 403 | -10/Subcaves | Shifting Twisted Machinery released Mak. Laser 403 | -10/Subcaves | Approached by a straggling Scientist 412 | -10/Subcaves | Learned location of Zion (-7) 412 | -10/Subcaves | Met a Zionite searching for "candidates" 590 | -10/Subcaves | A Subdweller sparked back to life 590 | -10/Subcaves | A Subdweller sparked back to life 590 | -10/Subcaves | A Subdweller sparked back to life 642 | -10/Subcaves | Core integrity fell below 50% 655 | -10/Subcaves | Core integrity fell below 20% 655 | -10/Subcaves | Discovered new exit (range 10) 663 | -10/Subcaves | Destroyed by 7S-9CR(R) with Subdweller Beam Cannon Last Messages --------------- J8-VVE(R) affixes Scrap Shield Fragment to Scrap Shield. Critical hit (Burn: +37). Mak. Laser destroyed. Y-45 Defender destroyed. Tech Extrapolator violently self-destructs. G-34 Mercenary destroyed. Med. Laser destroyed. Lgt. Treads destroyed. EM Pulse Gun destroyed. Acquired Machine Analyzer. Seismic Detector destroyed. Aluminum Leg fries itself beyond repair. Lgt. Treads destroyed. Ion Engine destroyed. Lgt. Treads fries itself beyond repair. Beam Rifle fries itself beyond repair. Heat Sink fries itself beyond repair. EXIT=FOUND Subatomizers dissect the Lgt. Ion Engine. Map ----- +----------------------------------------------------+ | ????????????????????????????????????????????? | | ????????????????????????????????????????????? | | ????????????????????????????????????????????? | | ????????????????????????????????????????????? | | ????????????????????????????????????????????? | | ????????????????????????????????????????????? | | ????????????????????????????????????????????? | | ????????????????????????????????????????????? | | ????????????????????????????????????????????? | | ????????????????????????????????????????????? | | ????????????????????????????????????????????? | | ????????????????????????????????????????????? | | ????????????????????????????????????????????? | | ????????????????????????????????????????????? | | ??????????????#?????????????????????????????? | | ??????????????# ????????????????????????????? | | ??????????????# ?????????? #????????????????? | | ??????????????? ????????? #????????????????? | | ???????????????# ???????? #????????????????? | | ??????????????? ??????? #????????????????? | | ???????????????? ##????? ##?????#?????????? | | ????????????????? ###?? ###?? #????????? | | ?????????????????? ### ## ????????? | | ??????????????????? # <= ??????????? | | ???????????????????# [%#?????????????? | | ??????????????????##@ &#?????????????? | | ?????????????????## ##????????????? | | ????????????????## #????????????? | | ???????????????## ####????????????? | | ???????????????# ####???????????????? | | ???????????????# ##??????????????????? | | ???????????????# #???????????????????? | | ???????????????# #???????????????????? | | ???????????????# #???????????????????? | | ???????????????####% #???????????????????? | | ??????????????### % #???????????????????? | | ??????????????# #???????????????????? | | ??????????????# ##???????????????????? | | ??????????????# ##????????????????????? | | ??????????????# R##?????????????????????? | | ??????????????# %R##?????????????????????? | | ??????????????# = ##????????????????????? | | ??????????????## #????????????????????? | | ???????????????# #????????????????????? | | ???????????????## #????????????????????? | | ????????????????### ##????????????????????? | | ?????????????????## ##?????????????????????? | | ???????????????### #??????????????????????# | | ??????????????## ##???????????????????#### | | ??????????????# #????????#########??## | +----------------------------------------------------+ Best States ------------- Heat Dissipation 25 Energy Generation 10 Energy Capacity 250 Matter Stores 300 Matter Capacity 300 Sight Range 16 Terrain Scan Density 10 Evasion (%) 40 Recoil Reduction 2 Item Schematics ----------------- None Robot Schematics ------------------ None Fabricated ------------ Nothing Repaired ---------- Nothing Studied --------- None Alien Tech Used ----------------- None Achievements -------------- None Challenges ------------ None Game ------ Seed BorgGuidanceForcegen Manual? 0 Play Time 00:13:19 Cumulative 7.6 hours Start 2026.07.25 @ 20:05:46 End 2026.07.25 @ 20:17:03 Sessions 1 Manual Loads 0 Difficulty Rogue Special Mode None Game No. 9 Rogue 9 Adventurer 0 Explorer 0 Win Type - Total 0 Types 0/0/0/0/0/0/0/0/0/0 Lore% 1 Gallery% 8 Achievement% 7 Wizard Run 0 Options --------- Layout 1 ASCII 0 Keyboard 0 Movement Mouse Keybinds 0 Fullscreen 2 Font 24/Smallcaps Map View 50x35 Zoom Use 0% Tactical HUD 0 Map Filters NONE Filters NONE Steam 1 RUN: 348d1e6f-900f-4953-b813-1aa14b8d8192